bitfinex/quotes_ETHUSD_20260304
["timestamp","ask_amount","ask_price","bid_price","bid_amount"]
[1772603261158,0.96016351,1975.7,1975.3,0.001]
[1772603261367,0.96016351,1975.5,1975.3,0.001]
[1772603261859,0.96016351,1975.5,1974.7,1.26601509]
[1772603262362,0.96016351,1975.5,1974.6,1.26605888]
[1772603262574,0.96016351,1975.4,1974.6,1.26605888]
[1772603262865,0.96016351,1975.2,1974.6,1.26605888]
[1772603263749,0.96016351,1975.2,1974.5,1.2660974]
[1772603263750,1.26575869,1975.1,1974.5,1.2660974]
[1772603263945,0.96016351,1975.0,1974.5,1.2660974]
[1772603264338,2.48816351,1975.0,1974.5,1.2660974]
[1772603265839,2.48816351,1975.0,1974.3,5.06608485]
[1772603266047,2.48816351,1975.0,1974.3,6.05620105]
[1772603266856,0.41104177,1974.9,1974.3,6.05620105]
[1772603267249,0.96016351,1974.8,1974.3,1.26727158]
[1772603268162,0.96016351,1974.8,1974.3,0.001]
[1772603268539,2.22612141,1974.8,1974.3,0.001]
[1772603268873,1.28005422,1975.3,1974.3,0.001]
[1772603268874,3.57845035,1975.9,1974.4,0.95298121]
[1772603269188,3.57845035,1975.9,1974.3,0.001]
[1772603269189,0.002,1976.3,1975.6,0.95298121]
[1772603269471,0.002,1976.3,1975.8,1.28005422]
[1772603269762,0.41104177,1976.2,1975.6,0.95298121]
[1772603270270,0.41104177,1976.2,1975.7,2.2183555]
[1772603270469,0.35640619,1976.2,1975.8,0.95298121]
[1772603270658,0.002,1976.3,1976.0,1.28005422]
[1772603270891,0.002,1976.3,1976.0,2.23303543]
[1772603272068,0.002,1976.3,1976.0,0.95298121]
[1772603272273,0.002,1976.3,1975.9,1.26524621]
[1772603273843,0.002,1976.2,1975.9,1.26524621]
[1772603274374,0.002,1976.2,1975.8,5.06098486]
[1772603276562,0.002,1976.3,1975.8,5.06098486]
[1772603276563,0.002,1976.4,1975.8,5.06098486]
[1772603276762,0.002,1976.4,1975.9,0.95298121]
[1772603277350,1.03874557,1976.4,1975.5,1.2655024]
[1772603277555,1.03874557,1976.4,1975.5,2.21848361]
[1772603277753,1.03874557,1976.4,1975.5,2.54555662]
[1772603277953,1.03874557,1976.4,1975.6,0.95298121]
[1772603278145,0.002,1976.4,1976.0,0.95298121]
[1772603278346,0.002,1976.4,1975.9,2.23303543]
[1772603278575,0.002,1976.4,1976.0,1.26518218]
[1772603278943,1.03674557,1976.7,1976.0,1.26518218]
[1772603278944,1.03674557,1976.9,1976.0,2.21816339]
[1772603279977,8.97097553,1976.2,1976.0,2.21816339]
[1772603280581,8.49955232,1976.2,1975.8,1.26531025]
[1772603280878,8.49955232,1976.2,1975.8,2.21829146]
[1772603281072,8.49955232,1976.2,1975.8,1.26531025]
[1772603281446,8.49955232,1976.2,1975.6,5.0616008]
[1772603281651,1.03674557,1976.1,1975.6,5.0616008]
[1772603282078,1.03674557,1976.1,1975.4,1.26556646]
[1772603282751,1.03674557,1975.9,1975.4,1.26556646]
[1772603283351,1.03674557,1975.9,1974.9,1.26588688]
[1772603283655,1.03674557,1975.8,1974.9,1.26588688]
[1772603284760,3.82511986,1975.7,1974.8,6.01655628]
[1772603284957,1.03674557,1975.6,1974.8,6.01655628]
[1772603285273,1.03674557,1975.4,1974.6,0.95298121]
[1772603285446,1.523,1975.5,1974.8,0.95298121]
[1772603285647,2.55974557,1975.6,1974.8,0.95298121]
[1772603286052,1.03674557,1975.5,1974.8,0.95298121]
[1772603286460,1.03674557,1975.5,1974.7,1.28005422]
[1772603286663,1.03674557,1975.5,1974.8,1.26595098]
[1772603287178,1.03874557,1975.5,1974.8,1.26595098]
[1772603287756,1.03674557,1975.4,1974.8,1.26595098]
[1772603288876,1.03674557,1975.3,1974.7,1.26601509]
[1772603290890,1.03674557,1975.1,1974.7,1.26601509]
[1772603291076,1.03674557,1975.1,1974.5,1.26609554]
[1772603291880,1.03674557,1975.3,1974.5,2.21907675]
[1772603292078,2.56174557,1975.3,1974.5,2.21907675]
[1772603292879,1.03674557,1975.1,1974.5,1.26609554]
[1772603294062,1.03674557,1975.1,1974.4,0.001]
[1772603294268,1.03674557,1975.1,1974.4,1.26720041]
[1772603294587,1.03674557,1975.1,1974.4,1.26720202]
[1772603294783,1.03674557,1974.9,1974.4,0.001]
[1772603295886,2.56074557,1974.9,1974.4,0.001]
[1772603296186,1.03674557,1974.9,1974.4,0.001]
[1772603296983,1.03674557,1974.8,1974.4,0.001]
[1772603299569,1.26572906,1975.2,1974.5,1.02409836]
[1772603299570,1.00222632,1975.2,1974.5,1.02409836]
[1772603299770,1.00222632,1975.2,1974.5,1.02509836]
[1772603299998,1.00222632,1975.2,1974.5,0.001]
[1772603300401,1.00222632,1975.0,1974.5,0.001]
[1772603300607,1.00222632,1975.3,1974.5,1.02509836]
[1772603300767,1.00222632,1975.3,1974.6,2.30415258]
[1772603300966,1.00222632,1975.3,1974.7,1.26601509]
[1772603301367,1.00222632,1975.2,1974.7,1.26601509]
[1772603301887,1.00222632,1975.2,1974.6,2.29012885]
[1772603302492,1.00222632,1975.2,1974.5,0.001]
[1772603303081,1.00222632,1975.0,1974.5,0.001]
[1772603303281,1.00222632,1974.8,1974.5,0.001]
[1772603305784,1.00222632,1975.1,1974.5,0.001]
[1772603306009,2.26798938,1975.1,1974.5,0.001]
[1772603306579,1.00222632,1975.1,1974.5,0.001]
[1772603306776,2.26798912,1975.1,1974.5,0.001]
[1772603307170,1.00222632,1975.0,1974.5,0.001]
[1772603307675,1.00222632,1974.9,1974.5,0.001]
[1772603308603,1.26580973,1975.1,1974.5,0.001]
[1772603308604,1.525,1975.0,1974.5,0.001]
[1772603308793,2.52722632,1975.0,1974.5,0.001]
[1772603309186,1.00222632,1974.9,1974.5,0.001]
[1772603309389,1.00222632,1975.1,1974.5,0.001]
[1772603309678,1.00222632,1974.9,1974.5,0.001]
[1772603311085,2.26802336,1975.1,1974.5,0.001]
[1772603311286,1.525,1975.0,1974.5,0.001]
[1772603311503,2.52722632,1975.0,1974.5,0.001]
[1772603312087,3.79309668,1975.0,1974.5,0.001]
[1772603312392,2.52722632,1975.0,1974.5,0.001]
[1772603313495,3.79306707,1975.0,1974.5,0.001]
[1772603313678,1.00222632,1974.9,1974.5,0.001]
[1772603314277,2.2681178,1974.9,1974.5,0.001]
[1772603314683,1.00222632,1974.8,1974.4,0.001]
[1772603316309,1.00222632,1974.6,1974.4,0.001]
[1772603316511,2.52922632,1974.5,1974.2,0.001]
[1772603316708,1.00222632,1974.4,1973.9,1.86417638]
[1772603316910,1.00222632,1974.4,1973.9,0.001]
[1772603317212,1.528,1974.3,1973.9,1.26752441]
[1772603317506,2.53022632,1974.3,1973.9,1.26752441]
[1772603318194,2.53022632,1974.3,1973.9,0.001]
[1772603319508,1.00222632,1974.2,1973.9,0.001]
[1772603320491,2.26856948,1974.2,1973.9,0.001]
[1772603321199,1.00222632,1974.1,1973.5,1.26673988]
[1772603322114,2.53222632,1974.0,1973.5,1.26673988]
[1772603324908,1.00222632,1973.9,1973.5,1.26673988]
[1772603325212,1.00222632,1973.9,1973.4,1.02409836]
[1772603325213,1.00222632,1973.9,1973.4,1.26680002]
[1772603326489,1.00222632,1974.2,1973.4,2.29089838]
[1772603326802,1.531,1973.9,1973.6,0.001]
[1772603327608,1.00222632,1973.8,1973.2,2.29102985]
[1772603327814,1.00222632,1973.8,1973.3,0.001]
[1772603328003,2.53322632,1973.8,1973.3,0.001]
[1772603328205,1.00462708,1973.7,1973.3,0.001]
[1772603329202,2.27129557,1973.7,1973.3,0.001]
[1772603329403,1.00462708,1973.6,1973.3,0.001]
[1772603329784,1.00462708,1973.6,1972.8,2.2518973]
[1772603330802,1.00462708,1973.6,1972.3,2.37575723]
[1772603331006,1.00462708,1973.4,1972.4,0.98466292]
[1772603331189,2.53562708,1973.3,1972.6,0.98466292]
[1772603331390,1.531,1973.3,1972.6,0.98466292]
[1772603331591,1.00462708,1973.2,1972.1,0.76659265]
[1772603331908,1.00462708,1972.8,1971.9,1.26876142]
[1772603332210,1.00462708,1972.6,1971.9,1.26876142]
[1772603332410,1.00462708,1972.6,1971.9,0.001]
[1772603333316,1.00462708,1972.4,1971.9,0.001]
[1772603334618,1.00462708,1972.3,1971.9,0.001]
[1772603334917,1.00462708,1972.3,1971.6,2.25365931]
[1772603334918,2.53762708,1972.3,1971.6,2.25365931]
[1772603335218,3.80523607,1972.3,1971.6,2.25365931]
[1772603335516,2.27218996,1972.3,1971.6,2.25365931]
[1772603335813,2.27218996,1972.3,1971.6,1.26899639]
[1772603336113,1.00462708,1972.2,1971.6,1.26899639]
[1772603336314,1.00462708,1972.2,1971.6,0.001]
[1772603336516,1.00462708,1972.2,1971.5,0.001]
[1772603337088,1.00462708,1972.2,1971.5,1.26906958]
[1772603337289,1.26774847,1972.0,1971.5,0.001]
[1772603338112,1.00462708,1971.9,1971.5,0.001]
[1772603338502,2.53862708,1971.9,1971.5,0.001]
[1772603338704,1.00462708,1971.9,1971.5,0.001]
[1772603339029,2.53862708,1971.9,1971.5,0.001]
[1772603339522,2.27250414,1971.8,1971.5,0.001]
[1772603340224,1.00462708,1971.8,1971.6,0.001]
[1772603340693,1.00462708,1971.8,1971.5,0.001]
[1772603341496,1.26794137,1971.7,1971.5,0.001]
[1772603342010,2.27255448,1971.8,1971.5,0.001]
[1772603342721,2.27255448,1971.8,1970.9,0.98466292]
[1772603342722,1.00462708,1971.7,1970.9,0.98466292]
[1772603343117,1.00462708,1971.7,1970.8,1.26847218]
[1772603343333,1.00462708,1971.7,1970.8,0.98466292]
[1772603343523,2.80300568,1971.6,1970.9,2.25311895]
[1772603343699,2.80300568,1971.6,1971.0,0.98466292]
[1772603343901,1.535,1971.6,1971.0,0.98466292]
[1772603344449,1.00462708,1971.7,1971.0,0.98466292]
[1772603344616,1.535,1971.8,1971.0,0.98466292]
[1772603345198,1.535,1972.0,1971.2,0.98466292]
[1772603345428,10.0,1971.9,1971.2,0.98466292]
[1772603345726,10.0,1971.9,1971.3,2.25286157]
[1772603346918,10.0,1971.9,1971.4,0.98466292]
[1772603347121,1.535,1972.1,1971.4,0.48234347]
[1772603347638,1.535,1972.1,1971.6,0.76980715]
[1772603348023,1.00462708,1972.3,1971.6,0.76980715]
[1772603348215,1.00462708,1972.2,1971.5,2.03787714]
[1772603348541,2.53962708,1972.2,1971.5,2.03787714]
[1772603349341,1.00462708,1972.1,1971.2,0.76773822]
[1772603349499,1.00462708,1972.1,1971.2,2.03596245]
[1772603349708,1.00462708,1972.1,1970.8,5.07406589]
[1772603349709,1.00462708,1971.9,1970.8,0.76566337]
[1772603349931,1.00462708,1971.9,1970.9,0.76566337]
[1772603350207,1.535,1971.8,1970.9,0.76566337]
[1772603350422,2.53962708,1971.8,1970.9,0.76566337]
[1772603350707,1.535,1971.7,1970.9,0.76566337]
[1772603351711,2.53962708,1971.8,1971.1,0.7614996]
[1772603351912,2.80288476,1971.8,1971.1,0.7614996]
[1772603352212,1.26788476,1971.8,1971.3,0.001]
[1772603352534,2.27451184,1971.8,1971.3,0.001]
[1772603354518,1.00462708,1971.7,1971.3,0.001]
[1772603354716,1.00462708,1971.7,1971.2,0.001]
[1772603354930,1.00462708,1971.7,1971.0,0.001]
[1772603356238,1.00462708,1971.5,1971.0,0.001]
[1772603356546,1.00462708,1971.5,1970.6,5.07446472]
[1772603356547,1.00462708,1971.3,1970.3,0.75205256]
[1772603356836,1.00462708,1971.3,1970.3,2.02087511]
[1772603356837,1.00462708,1971.2,1970.3,2.02087511]
[1772603357053,1.00462708,1971.2,1970.3,0.75205256]
[1772603357230,1.00462708,1971.2,1970.2,1.26885814]
[1772603357824,1.00462708,1971.2,1970.1,2.02101214]
[1772603358029,1.00462708,1971.2,1970.1,1.26895958]
[1772603358352,1.13398281,1971.0,1970.0,1.26898805]
[1772603359337,1.534,1971.0,1970.1,0.75027492]
[1772603359634,2.40231013,1971.1,1970.1,0.75027492]
[1772603360136,1.13398281,1971.0,1970.1,0.75027492]
[1772603360441,2.40242265,1971.0,1970.2,1.2689067]
[1772603361309,1.13398281,1970.9,1970.2,1.2689067]
[1772603361512,1.13398281,1970.9,1970.2,2.01270389]
[1772603361735,1.534,1971.1,1970.3,0.74379719]
[1772603362135,1.13398281,1971.3,1970.3,0.74379719]
[1772603362324,2.40202011,1971.6,1970.6,0.74379719]
[1772603362649,1.13398281,1971.4,1970.6,0.74379719]
[1772603363028,1.13398281,1971.4,1970.4,1.26877791]
[1772603364345,1.13398281,1971.2,1970.4,1.26877791]
[1772603365743,1.13598281,1971.1,1970.4,1.26877791]
[1772603366245,2.40237448,1971.0,1970.3,2.01143218]
[1772603366834,2.66698281,1970.9,1970.3,1.26980454]
[1772603367642,2.66698281,1970.9,1970.3,2.00054754]
[1772603369145,1.13398281,1970.9,1970.3,2.00054754]
[1772603369343,1.13598281,1971.1,1970.4,0.72854748]
[1772603369544,1.2703306,1971.1,1970.4,0.72854748]
[1772603369823,0.002,1971.1,1970.4,0.72854748]
[1772603370033,1.27033646,1971.1,1970.4,0.72854748]
[1772603370254,0.002,1971.1,1970.4,0.72854748]
[1772603370626,0.002,1971.1,1970.5,1.26871352]
[1772603370627,1.13598281,1971.1,1970.5,1.26871352]
[1772603371826,1.533,1971.1,1970.5,1.26871352]
[1772603372026,1.13398281,1971.0,1970.5,1.26871352]
[1772603372646,2.40241156,1971.0,1970.5,1.26871352]
[1772603373173,2.66398281,1971.0,1970.5,1.26871352]
[1772603373547,1.532,1971.1,1970.6,0.71753763]
[1772603373747,0.002,1971.1,1970.7,0.71753763]
[1772603374554,0.002,1971.1,1970.8,1.98384281]
[1772603374764,0.002,1971.2,1970.9,0.71332242]
[1772603375943,0.002,1971.8,1971.1,0.71117506]
[1772603376167,0.004,1971.8,1971.3,0.71117506]
[1772603376340,0.002,1971.7,1971.3,0.71117506]
[1772603376740,0.002,1971.8,1971.4,1.97720668]
[1772603376969,0.002,1971.8,1971.2,0.70907236]
[1772603376970,0.004,1971.8,1971.2,0.70907236]
[1772603377169,0.002,1971.7,1971.2,1.97728669]
[1772603377476,0.002,1971.7,1971.2,1.26821433]
[1772603378242,0.002,1971.7,1971.2,1.97506572]
[1772603378675,0.002,1971.7,1971.1,1.26832732]
[1772603378977,0.002,1971.6,1971.1,1.26832732]
[1772603379179,0.002,1971.8,1971.1,1.26832732]
[1772603379357,0.002,1971.7,1971.1,1.26832732]
[1772603379850,0.004,1971.7,1971.1,1.26832732]
[1772603380058,0.002,1971.6,1971.1,1.26832732]
[1772603380774,0.002,1971.6,1971.1,2.55609805]
[1772603380982,0.002,1971.5,1971.1,2.55609805]
[1772603381158,0.002,1971.6,1971.1,2.55609805]
[1772603381566,0.002,1971.6,1971.0,5.77813366]
[1772603381567,1.13598281,1971.5,1971.0,0.70462742]
[1772603381872,1.13398281,1971.5,1971.0,0.70462742]
[1772603382577,0.002,1971.4,1970.8,1.2685175]
[1772603382778,1.1427198,1971.3,1970.8,1.2685175]
[1772603382948,1.1427198,1971.3,1970.7,5.07431547]
[1772603382949,2.41092319,1971.3,1970.6,0.001]
[1772603383149,0.002,1971.2,1970.6,0.001]
[1772603383681,0.002,1971.1,1970.6,0.01070141]
[1772603383867,0.002,1971.2,1970.6,0.01070141]
[1772603384978,0.002,1971.2,1970.8,0.00793603]
[1772603385179,2.43249053,1971.8,1970.7,1.26858476]
[1772603385180,2.41261271,1971.8,1971.0,0.00793603]
[1772603385476,0.002,1971.6,1971.0,0.00793603]
[1772603385883,0.002,1971.5,1971.1,1.29393577]
[1772603386181,0.002,1971.6,1971.1,0.00616504]
[1772603387077,0.002,1971.8,1971.4,0.00238494]
[1772603388076,0.002,1971.8,1971.5,0.00201549]
[1772603388477,0.002,1971.9,1971.5,0.00201549]
[1772603389182,0.002,1971.9,1971.5,1.27008548]
[1772603391989,0.002,1971.9,1971.4,6.36005071]
[1772603392194,0.002,1971.9,1971.5,1.26806999]
[1772603392378,0.002,1971.9,1971.5,1.26906999]
[1772603392583,0.002,1971.9,1971.5,1.27322635]
[1772603392891,0.002,1971.8,1971.5,1.27322635]
[1772603393257,0.002,1971.8,1971.5,1.26906999]
[1772603393458,0.002,1971.8,1971.5,0.001]
[1772603394455,1.14672755,1971.8,1971.5,0.001]
[1772603395462,2.41463732,1971.8,1971.5,0.001]
[1772603395988,1.14472755,1971.7,1971.5,0.001]
[1772603398886,0.002,1971.8,1971.5,0.001]
[1772603401290,1.14672755,1971.8,1971.5,0.001]
[1772603401591,2.41461882,1971.8,1971.5,0.001]
[1772603402105,2.41461882,1971.8,1971.2,0.001]
[1772603402106,1.14472755,1971.7,1971.2,0.001]
[1772603402263,1.14422755,1971.6,1970.7,1.26855889]
[1772603402463,1.14422755,1971.4,1970.6,1.26960847]
[1772603403467,1.14422755,1971.4,1970.6,0.001]
[1772603403468,1.14422755,1971.2,1970.6,0.001]
[1772603403975,1.14422755,1971.0,1970.6,0.001]
[1772603404694,2.66222755,1971.2,1970.6,0.001]
[1772603404993,1.14422755,1971.1,1970.8,0.001]
[1772603405692,1.26839167,1971.0,1970.8,0.001]
[1772603406692,2.41261922,1971.0,1970.8,0.001]
[1772603407197,1.14422755,1971.0,1970.8,0.001]
[1772603407698,1.14372755,1970.8,1970.6,0.001]
[1772603409998,1.14372755,1971.1,1970.6,0.001]
[1772603410205,2.41198069,1971.3,1970.6,0.001]
[1772603413289,1.14372755,1971.3,1970.6,0.001]
[1772603413708,1.517,1971.5,1970.6,1.28877073]
[1772603414014,1.26999715,1971.7,1970.8,1.28777073]
[1772603414015,0.002,1971.7,1970.8,1.28777073]
[1772603414180,0.002,1971.7,1970.9,1.26845603]
[1772603414379,0.002,1971.7,1971.0,1.28777073]
[1772603416029,0.002,1971.7,1971.2,1.28777073]
[1772603416199,0.002,1971.7,1971.3,1.26819865]
[1772603417214,0.002,1971.9,1971.4,1.28777073]
[1772603417425,0.002,1971.9,1971.1,6.36089628]
[1772603417792,0.002,1971.5,1971.1,6.36089628]
[1772603419411,0.002,1971.8,1971.3,1.28777073]
[1772603419613,0.002,1971.8,1971.5,1.28777073]
[1772603420514,0.002,1971.9,1971.6,1.26800568]
[1772603422523,0.002,1972.0,1971.6,1.26800568]
[1772603422707,1.14372755,1972.6,1971.8,1.28777073]
[1772603423025,0.004,1972.7,1972.0,1.28777073]
[1772603423201,1.14372755,1972.9,1972.0,1.28777073]
[1772603423393,1.14372755,1972.7,1972.0,1.28777073]
[1772603424030,1.14372755,1972.7,1971.8,1.28777073]
[1772603424327,0.004,1972.6,1971.8,1.28777073]
[1772603424821,0.004,1972.6,1971.9,1.26781276]
[1772603425429,0.004,1972.6,1972.0,1.28777073]
[1772603425600,0.004,1972.5,1972.0,1.28777073]
[1772603425930,0.004,1972.6,1972.2,1.28777073]
[1772603426115,1.14372755,1973.1,1972.2,1.28777073]
[1772603426322,2.41078233,1973.1,1972.2,1.28777073]
[1772603426700,1.14372755,1973.1,1972.3,1.26755564]
[1772603426899,1.14772755,1973.0,1971.7,1.26794137]
[1772603427434,1.14772755,1973.0,1972.0,1.28777073]
[1772603427733,1.14772755,1972.9,1972.0,1.28777073]
[1772603427902,1.14372755,1972.9,1972.0,1.28777073]
[1772603428616,1.14772755,1972.8,1971.8,1.28777073]
[1772603428806,1.14372755,1972.8,1971.8,1.28777073]
[1772603429208,2.41102617,1972.7,1971.9,1.26781276]
[1772603429537,1.14372755,1972.7,1971.9,1.26781276]
[1772603429836,0.004,1972.6,1971.9,1.26781276]
[1772603431424,0.004,1972.5,1971.9,1.26781276]
[1772603433118,0.002,1972.7,1972.2,1.80017648]
[1772603433316,0.004,1972.6,1972.3,1.26755564]
[1772603433626,0.002,1972.7,1972.3,1.26755564]
[1772603433930,0.002,1972.8,1972.3,1.26755564]
[1772603434133,0.002,1972.8,1972.2,6.87039906]
[1772603434134,0.002,1972.8,1972.2,1.26757814]
[1772603434522,1.14572755,1972.8,1972.2,1.26757814]
[1772603435112,1.14572755,1972.8,1971.8,1.26787706]
[1772603435333,1.14372755,1972.6,1971.7,5.07174423]
[1772603437437,0.002,1972.8,1971.7,5.07174423]
[1772603437632,2.41296979,1972.8,1971.7,5.07174423]
[1772603438014,1.14372755,1972.7,1971.7,5.07174423]
[1772603439142,1.26924224,1972.8,1972.0,1.80017648]
[1772603439143,2.41297116,1972.8,1972.0,1.80017648]
[1772603439437,2.41297116,1972.8,1972.1,1.26768419]
[1772603440236,1.14572755,1972.8,1972.1,1.26768419]
[1772603440441,2.41296885,1972.8,1972.1,1.26768419]
[1772603440645,1.14572755,1972.8,1972.1,1.26768419]
[1772603441011,2.41296882,1972.8,1972.1,1.26768419]
[1772603441527,1.14572755,1972.8,1971.9,5.07073677]
[1772603443142,0.002,1972.8,1972.1,1.80017648]
[1772603443359,0.002,1972.7,1972.1,1.80017648]
[1772603443526,0.002,1972.7,1972.2,1.26761991]
[1772603445031,1.14572755,1972.7,1972.0,0.001]
[1772603445339,1.14572755,1972.7,1972.0,1.26873794]
[1772603445543,1.14372755,1972.5,1972.0,0.001]
[1772603445915,1.14372755,1972.5,1971.7,1.26894137]
[1772603447941,1.26749138,1972.4,1971.7,0.001]
[1772603448243,2.41071893,1972.4,1971.7,0.001]
[1772603449429,1.14322755,1972.3,1971.7,0.001]
[1772603450329,2.4107862,1972.3,1971.7,0.001]
[1772603450530,1.14322755,1972.2,1971.7,0.001]
[1772603451156,1.14322755,1972.6,1971.7,0.001]
[1772603451554,1.14322755,1972.6,1971.8,1.80017648]
[1772603451725,1.14322755,1972.6,1971.7,0.001]
[1772603452866,0.002,1972.7,1971.7,0.001]
[1772603453060,0.002,1972.7,1971.8,1.80017648]
[1772603454532,0.002,1972.7,1971.9,1.26781276]
[1772603455351,1.14522755,1972.7,1971.9,1.26781276]
[1772603456755,1.14522755,1972.7,1971.8,0.001]
[1772603456756,1.14322755,1972.6,1971.8,0.001]
[1772603456957,1.14522755,1972.6,1971.8,0.001]
[1772603459260,0.002,1972.6,1971.8,0.001]
[1772603459559,0.002,1972.7,1971.8,0.001]
[1772603460146,0.002,1972.7,1971.8,1.509]
[1772603460450,0.002,1972.8,1971.8,1.509]
[1772603460651,1.14522755,1972.8,1971.9,1.26781276]
[1772603461260,1.14322755,1972.7,1971.9,1.26781276]
[1772603462964,0.002,1972.8,1972.0,1.80017648]
[1772603463138,1.14322755,1973.3,1972.3,1.80017648]
[1772603464763,1.14322755,1973.3,1972.7,1.26729862]
[1772603465068,1.14322755,1973.2,1972.3,5.070216]
[1772603465548,1.14322755,1973.2,1972.1,1.26768419]
[1772603466943,1.14322755,1973.0,1971.9,5.07073677]
[1772603468567,1.14322755,1972.9,1971.9,5.07073677]
[1772603469066,1.14322755,1972.7,1971.9,5.07073677]
[1772603470165,1.14322755,1972.7,1972.0,0.001]
[1772603472543,1.14322755,1972.6,1972.0,0.001]
[1772603472743,1.07206744,1972.6,1972.0,0.001]
[1772603473647,1e-08,1972.6,1972.0,0.001]
[1772603474049,1.26737172,1972.6,1972.0,0.001]
[1772603474246,1e-08,1972.6,1972.0,0.001]
[1772603474441,1.26741391,1972.6,1972.0,0.001]
[1772603475570,1e-08,1972.6,1972.0,0.001]
[1772603477771,1.00127196,1972.4,1971.9,0.001]
[1772603480063,1.26754791,1972.4,1971.9,0.001]
[1772603480376,1.00335181,1972.3,1971.9,0.001]
[1772603481276,2.42550285,1972.8,1971.9,0.001]
[1772603481277,1.00335181,1972.9,1972.0,1.03879998]
[1772603481580,1.00335181,1972.7,1972.0,1.03879998]
[1772603482361,1.00335181,1972.5,1972.0,1.26770225]
[1772603482547,1.00335181,1972.5,1972.0,1.26870225]
[1772603482961,1.00535181,1972.5,1972.0,1.26870225]
[1772603484260,1.00535181,1972.5,1972.0,0.001]
[1772603484467,0.002,1972.5,1972.0,1.03979998]
[1772603485958,1.25945274,1972.4,1972.0,1.03979998]
[1772603486173,0.002,1972.5,1972.0,1.03979998]
[1772603486481,0.002,1972.5,1972.2,1.03879998]
[1772603488607,0.002,1972.5,1972.3,1.26755564]
[1772603491376,1.00535181,1972.5,1972.0,1.26870833]
[1772603492486,1.00535181,1972.5,1972.0,0.001]
[1772603492692,1.00535181,1972.5,1972.0,1.26874125]
[1772603492895,1.00335181,1972.4,1972.0,0.001]
[1772603496898,1.00335181,1972.4,1972.1,0.001]
[1772603497396,1.00535181,1972.4,1972.1,0.001]
[1772603497988,2.49735181,1972.4,1972.1,0.001]
[1772603500399,1.00335181,1972.3,1972.1,0.001]
[1772603500593,1.00335181,1972.3,1972.0,0.001]
[1772603500796,1.00335181,1972.3,1971.8,0.001]
[1772603501200,1.00335181,1972.2,1971.8,0.001]
[1772603501439,1.00335181,1972.0,1971.5,1.26906444]
[1772603501698,1.00335181,1971.8,1971.5,0.001]
[1772603502293,1.00335181,1971.7,1971.5,0.001]
[1772603502600,1.492,1971.8,1971.5,0.001]
[1772603502803,1.00335181,1972.2,1971.5,1.03979998]
[1772603502978,4.98472415,1972.3,1971.5,0.001]
[1772603502979,1.00335181,1972.0,1971.5,0.001]
[1772603503489,1.00335181,1971.8,1971.5,0.001]
[1772603504270,4.7018297,1972.3,1971.5,1.03979998]
[1772603504597,1.00335181,1972.2,1971.5,1.03979998]
[1772603506503,2.27097842,1972.2,1971.6,1.26800568]
[1772603506816,1.00335181,1972.1,1971.6,1.26800568]
[1772603509210,1.00335181,1972.1,1971.6,2.32012923]
[1772603509393,2.53924242,1972.3,1971.7,1.05212355]
[1772603511218,1.04624242,1972.2,1971.7,2.32100522]
[1772603513010,1.04824242,1972.4,1971.8,1.05212355]
[1772603513310,1.493,1972.3,1971.9,1.26781276]
[1772603513482,2.53924242,1972.3,1971.9,1.26781276]
[1772603514102,2.53924242,1972.3,1971.7,6.12476257]
[1772603514103,1.04624242,1972.2,1971.8,1.26782678]
[1772603515498,1.04624242,1972.1,1971.7,0.001]
[1772603516105,1.04624242,1972.1,1971.7,1.26892536]
[1772603516491,1.04624242,1972.1,1971.7,0.001]
[1772603518206,1.04624242,1971.9,1971.7,0.001]
[1772603518398,1.04624242,1971.9,1971.5,1.26904651]
[1772603518592,1.04624242,1971.7,1971.5,0.001]
[1772603518910,1.494,1971.9,1971.5,1.26905747]
[1772603519099,2.54024242,1971.9,1971.5,1.26905747]
[1772603519916,2.54024242,1971.9,1971.5,0.001]
[1772603520120,1.04624242,1971.8,1971.5,0.001]
[1772603522825,1.494,1971.9,1971.5,1.05312355]
[1772603523497,2.54124242,1972.2,1971.6,1.05312355]
[1772603523692,0.002,1972.0,1971.6,1.05312355]
[1772603523896,0.002,1972.1,1971.7,1.05212355]
[1772603524427,0.002,1972.1,1971.8,2.32000061]
[1772603526704,0.002,1972.1,1971.9,1.05212355]
[1772603528102,0.002,1972.3,1972.0,1.05212355]
[1772603528812,0.002,1972.3,1972.0,2.31986408]
[1772603529530,0.002,1972.3,1972.0,2.31986801]
[1772603530443,0.002,1972.3,1972.0,1.05212355]
[1772603530747,0.002,1972.3,1971.8,5.07141043]
[1772603530748,1.04824242,1972.3,1971.8,2.31995504]
[1772603530913,1.04624242,1972.2,1971.8,1.26783149]
[1772603531120,1.04624242,1972.2,1971.7,1.26790223]
[1772603531320,1.04624242,1972.2,1971.7,2.32002578]
[1772603533451,0.002,1972.3,1971.8,1.05212355]
[1772603535250,0.002,1972.3,1972.0,1.05212355]
[1772603536545,0.002,1972.2,1972.0,1.05212355]
[1772603537334,0.002,1972.2,1972.0,2.31981245]
[1772603537749,0.002,1972.3,1972.1,1.01896612]
[1772603539855,0.002,1972.3,1972.2,2.29915696]
[1772603543146,0.002,1972.6,1972.3,1.03153705]
[1772603544131,5.0702942,1973.1,1972.3,1.03153705]
[1772603544132,1e-08,1972.8,1972.3,1.03153705]
[1772603545068,1e-08,1972.8,1972.5,1.03153705]
[1772603547150,1e-08,1972.8,1972.6,1.26736287]
[1772603547345,1e-08,1972.8,1972.6,2.29889992]
[1772603547752,1e-08,1972.8,1972.7,1.03153705]
[1772603547936,0.002,1973.2,1972.7,1.03153705]
[1772603548132,0.002,1973.2,1972.9,1.03153705]
[1772603549152,0.002,1973.0,1972.9,2.2987072]
[1772603549669,0.002,1973.2,1972.9,2.2987072]
[1772603550664,1.03495943,1973.2,1972.5,1.03153705]
[1772603550877,1.03495943,1973.2,1972.5,1.2673877]
[1772603551177,1.03495943,1973.2,1972.7,1.26729862]
[1772603551954,1.03295943,1973.1,1972.7,1.26729862]
[1772603552955,0.002,1973.2,1972.7,2.29883567]
[1772603553151,0.002,1973.2,1972.8,1.03153705]
[1772603555381,0.002,1973.2,1973.0,1.03153705]
[1772603557563,0.002,1973.2,1973.1,1.26704171]